fUST/lending_fUST_20260106
["ID","MTS","AMOUNT","RATE_DAILY","PERIOD"]
[400515994,1767690640916,-2000.0,0.00019077,3]
[400515995,1767690640926,-303.43994696,0.00019089,2]
[400515998,1767690640938,-303.43083173,0.00019089,2]
[400515999,1767690640950,-32133.98,0.000192,2]
[400516001,1767690640961,-10000.0,0.00019204,2]
[400516003,1767690640972,-303.43994696,0.00019278,2]
[400516005,1767690640983,-364.17715314,0.00019278,2]
[400516007,1767690640995,-151.0,0.00019352,2]
[400516009,1767690641005,-761.0,0.00019393,2]
[400516011,1767690641015,-597.0,0.00019416,2]
[400516013,1767690641026,-597.0,0.00019428,2]
[400516015,1767690641038,-800.0,0.00019452,7]
[400516017,1767690641048,-184.3704767,0.00019452,2]
[400516019,1767690641058,-612.9682509,0.00019452,2]
[400516021,1767690641068,-184.3704767,0.00019452,2]
[400516023,1767690641077,-190.8637568,0.00019452,2]
[400516025,1767690641086,-1000.0,0.00019466,2]
[400516027,1767690641096,-492.0,0.00019466,2]
[400516029,1767690641106,-303.43994696,0.00019467,2]
[400516031,1767690641115,-761.0,0.0001947,2]
[400516033,1767690641127,-597.0,0.00019471,2]
[400516035,1767690641136,-2674.60743027,0.00019477,2]
[400516037,1767690641146,-553.64373807,0.00019477,2]
[400516039,1767690641157,-170.73155875,0.00019486,28]
[400516041,1767690641166,-1777.927917,0.000195,2]
[400516043,1767690641175,-777.0,0.000195,2]
[400516045,1767690641184,-761.0,0.00019537,2]
[400516047,1767690641195,-761.0,0.00019537,2]
[400516049,1767690641204,-597.0,0.00019566,2]
[400516051,1767690641214,-597.0,0.00019566,2]
[400516052,1767690641223,-2224.69693145,0.000196,2]
[400516054,1767690641232,-597.0,0.00019601,2]
[400516056,1767690641242,-597.0,0.00019622,2]
[400516058,1767690641251,-597.0,0.0001963,2]
[400516060,1767690641261,-303.43994696,0.00019656,2]
[400516062,1767690641270,-151.0,0.00019676,2]
[400516064,1767690641280,-597.0,0.00019687,2]
[400516066,1767690641290,-44398.1709892,0.00019776,2]
[400516068,1767690641298,-292.5920699,0.00019776,2]
[400516070,1767690641308,-250.35,0.00019797,2]
[400516072,1767690641317,-800.0,0.00019827,2]
[400516074,1767690641327,-6738.97349484,0.00019838,11]
[400516076,1767690641336,-455.15992044,0.00019845,4]
[400516078,1767690641347,-178.0,0.00019853,2]
[400516080,1767690641357,-170.73155875,0.000199,30]
[400516082,1767690641366,-597.0,0.00019938,2]
[400516084,1767690641375,-160.0,0.00019993,4]
[400516086,1767690641385,-160.0,0.00019993,5]
[400516088,1767690641395,-1532924.6534049,0.0002,2]
[400516092,1767690641415,-1196.9605039,0.0002,2]
[400516094,1767690641427,-1150.0,0.0002,2]
[400516096,1767690641438,-186980.8812284,0.0002,2]
[400516099,1767690641454,-347.0,0.00018,2]
[400516100,1767690641463,-3296.1441881,0.0002,2]
[400516304,1767690644727,-500.0,0.00013698,2]
[400516305,1767690644737,-500.0,0.00013698,2]
[400516307,1767690644746,-500.0,0.00013698,2]
[400516309,1767690644755,-500.0,0.00013698,2]
[400516311,1767690644764,-500.0,0.00013698,2]
[400516313,1767690644774,-500.0,0.00013698,2]
[400516315,1767690644783,-500.0,0.00013698,2]
[400516317,1767690644792,-500.0,0.00013698,2]
[400516319,1767690644802,-500.0,0.00013698,2]
[400516321,1767690644811,-500.0,0.00013698,2]
[400516323,1767690644820,-500.0,0.00013698,2]
[400516325,1767690644830,-500.0,0.00013698,2]
[400516327,1767690644839,-500.0,0.00013698,2]
[400516330,1767690644848,-500.0,0.00013698,2]
[400516332,1767690644858,-500.0,0.00013698,2]
[400516334,1767690644868,-500.0,0.00013698,2]
[400516336,1767690644877,-500.0,0.00013698,2]
[400516338,1767690644886,-500.0,0.00013698,2]
[400516340,1767690644895,-500.0,0.00013698,2]
[400516342,1767690644904,-151.0,0.00017833,2]
[400516344,1767690644914,-151.0,0.00018,2]
[400516346,1767690644923,-151.0,0.00018,2]
[400516348,1767690644933,-417.0,0.00019853,2]
[400516350,1767690644942,-12176.40426097,0.0002,2]
[400516878,1767691802766,3440.0,0.0003,120]
[400516946,1767691833231,-3180.94036936,9.703e-05,2]
[400516948,1767691833242,-253.83912289,9.876e-05,2]
[400516950,1767691833255,-299.53016501,0.00011876,2]
[400516952,1767691833267,-3251.89466337,0.00013,7]
[400516954,1767691833278,-819.0,0.00013272,2]
[400516956,1767691833289,-586.03572963,0.00013273,2]
[400516958,1767691833301,-500.0,0.00013592,2]
[400516960,1767691833312,-300.0,0.00013662,2]
[400516962,1767691833322,-300.0,0.00013662,2]
[400516963,1767691833334,-300.0,0.00013662,2]
[400516965,1767691833345,-9929.31950373,0.00013663,2]
[400516967,1767691833356,-1223.130553,0.00013699,2]
[400516969,1767691833368,-500.0,0.00013729,2]
[400516971,1767691833379,-500.0,0.00013763,2]
[400516972,1767691833390,-500.0,0.00013763,2]
[400516974,1767691833402,-500.0,0.00013763,2]
[400516977,1767691833413,-500.0,0.00013763,2]
[400516981,1767691833426,-500.0,0.00013763,2]
[400516983,1767691833437,-500.0,0.00013763,2]
[400516984,1767691833448,-500.0,0.00013763,2]
[400516985,1767691833459,-516.41929623,0.00013763,2]
[400516986,1767691833470,-500.0,0.00013763,2]
[400516987,1767691833482,-500.0,0.00013763,2]
[400516988,1767691833493,-500.0,0.00013763,2]
[400516989,1767691833505,-500.0,0.00013763,2]
[400516990,1767691833516,-500.0,0.00013763,2]
[400516991,1767691833529,-500.0,0.00013763,2]
[400516992,1767691833540,-500.0,0.00013763,2]
[400516993,1767691833551,-500.0,0.00013763,2]
[400516994,1767691833563,-500.0,0.00013763,2]
[400516995,1767691833574,-500.0,0.00013763,2]
[400516996,1767691833586,-500.0,0.00013763,2]
[400516997,1767691833597,-500.0,0.00013763,2]
[400516998,1767691833608,-500.0,0.00013763,2]
[400516999,1767691833619,-288.74997861,0.00013763,2]
[400517000,1767691833630,-500.0,0.00013763,2]
[400517001,1767691833642,-500.0,0.00013763,2]
[400517002,1767691833653,-162.48084502,0.00013763,2]
[400517003,1767691833663,-500.0,0.00013763,2]
[400517004,1767691833674,-260.77036426,0.00013763,2]
[400517005,1767691833685,-500.0,0.00013763,2]
[400517006,1767691833695,-500.0,0.00013763,2]
[400517007,1767691833707,-500.0,0.00013763,2]
[400517008,1767691833717,-500.0,0.00013763,2]
[400517009,1767691833728,-500.0,0.00013763,2]
[400517010,1767691833741,-500.0,0.00013763,2]
[400517011,1767691833753,-500.0,0.00013763,2]
[400517012,1767691833766,-500.0,0.00013763,2]
[400517013,1767691833779,-500.0,0.00013763,2]
[400517014,1767691833791,-500.0,0.00013763,2]
[400517015,1767691833802,-500.0,0.00013763,2]
[400517016,1767691833814,-500.0,0.00013763,2]
[400517017,1767691833827,-500.0,0.00013763,2]
[400517018,1767691833840,-500.0,0.00013763,2]
[400517019,1767691833852,-500.0,0.00013763,2]
[400517020,1767691833863,-500.0,0.00013763,2]
[400517021,1767691833873,-500.0,0.00013763,2]
[400517022,1767691833884,-500.0,0.00013763,2]
[400517023,1767691833895,-500.0,0.00013763,2]
[400517024,1767691833906,-500.0,0.00013763,2]
[400517025,1767691833916,-346.93327841,0.00013763,2]
[400517026,1767691833928,-500.0,0.00013763,2]
[400517027,1767691833938,-500.0,0.00013763,2]
[400517028,1767691833951,-500.0,0.00013763,2]
[400517029,1767691833963,-500.0,0.00013763,2]
[400517030,1767691833975,-500.0,0.00013763,2]
[400517031,1767691833986,-500.0,0.00013763,2]
[400517032,1767691833997,-500.0,0.00013763,2]
[400517033,1767691834008,-500.0,0.00013763,2]
[400517034,1767691834019,-500.0,0.00013763,2]
[400517035,1767691834030,-500.0,0.00013763,2]
[400517036,1767691834040,-500.0,0.00013763,2]
[400517037,1767691834052,-500.0,0.00013763,2]
[400517038,1767691834062,-50000.0,0.00013763,2]
[400517039,1767691834073,-600.0,0.00013866,2]
[400517040,1767691834084,-345.22120713,0.00013876,2]
[400517041,1767691834094,-300.0,0.00013971,2]
[400517042,1767691834104,-300.0,0.00013971,2]
[400517043,1767691834114,-300.0,0.00013971,2]
[400517044,1767691834125,-300.0,0.00013971,2]
[400517045,1767691834135,-300.0,0.00013971,2]
[400517046,1767691834145,-300.0,0.00013971,2]
[400517047,1767691834157,-300.0,0.00013971,2]
[400517048,1767691834168,-300.0,0.00013971,2]
[400517049,1767691834178,-300.0,0.00013971,2]
[400517050,1767691834188,-300.0,0.00013971,2]
[400517051,1767691834198,-300.0,0.00013971,2]
[400517052,1767691834209,-300.0,0.00013971,2]
[400517053,1767691834219,-300.0,0.00013971,2]
[400517054,1767691834230,-300.0,0.00013971,2]
[400517055,1767691834241,-300.0,0.00013971,2]
[400517056,1767691834252,-1046.82300495,0.00014175,2]
[400517057,1767691834263,-1943.64600991,0.00014175,2]
[400517058,1767691834274,-2840.46901486,0.00014175,2]
[400517059,1767691834284,-3452.42138308,0.00014239,2]
[400517080,1767691839056,-284.87063674,0.00014239,2]
[400517081,1767691839066,-989.43624493,0.00014367,2]
[400517082,1767691839079,-52.23042174,0.00014367,2]
[400517083,1767691839089,-1109.31559153,0.00014988,2]
[400517084,1767691839100,-968.75395028,0.00014988,2]
[400517088,1767691840798,-358.36397932,0.00013762,2]
[400517089,1767691840811,-309.51533702,0.00013762,2]
[400517090,1767691840820,-455.56523268,0.00013762,2]
[400517091,1767691840830,-500.0,0.00013762,2]
[400517092,1767691840840,-667.87931634,0.00013762,2]
[400517093,1767691840850,-667.87931634,0.00013762,2]
[400517094,1767691840860,-355.81453422,0.00013762,2]
[400517096,1767691840870,-667.87931634,0.00013762,2]
[400517097,1767691840880,-667.87931634,0.00013762,2]
[400517098,1767691840889,-667.87931634,0.00013762,2]
[400517099,1767691840899,-667.87931634,0.00013762,2]
[400517100,1767691840908,-667.87931634,0.00013762,2]
[400517101,1767691840918,-667.87931634,0.00013762,2]
[400517102,1767691840927,-667.87931634,0.00013762,2]
[400517103,1767691840937,-667.87931634,0.00013762,2]
[400517104,1767691840948,-667.87931634,0.00013762,2]
[400517105,1767691840958,-405.77994587,0.00013762,2]
[400517106,1767691840978,-262.09937047,0.00013762,2]
[400517107,1767691840987,-667.87931634,0.00013762,2]
[400517108,1767691840997,-667.87931634,0.00013762,2]
[400517109,1767691841007,-667.87931634,0.00013762,2]
[400517110,1767691841016,-667.87931634,0.00013762,2]
[400517111,1767691841026,-667.87931634,0.00013762,2]
[400517112,1767691841035,-667.87931634,0.00013762,2]
[400517113,1767691841044,-667.87931634,0.00013762,2]
[400517114,1767691841054,-667.87931634,0.00013762,2]
[400517115,1767691841063,-667.87931634,0.00013762,2]
[400517116,1767691841072,-949.3413863,0.00014988,2]
[400517117,1767691841082,-32948.13489453,0.0001499,2]
[400517118,1767691841095,-3165.76654565,0.0001499,2]
[400517145,1767691844638,-667.87931634,0.00013762,2]
[400517147,1767691844648,-667.87931634,0.00013762,2]
[400517148,1767691844659,-667.87931634,0.00013762,2]
[400517150,1767691844668,-18592.83490142,0.0001499,2]
[400517156,1767691846458,-1075.6164,0.0001499,2]
[400517157,1767691850977,-44217.6472584,0.0001499,2]
[400517158,1767691850986,-1000.0,0.00015,2]
[400517159,1767691850995,-2412.43259168,0.00015,2]
[400517160,1767691851005,-10987.96789992,0.0001501,2]
[400517161,1767691851015,-1075.6164,0.0001501,2]
[400517162,1767691913609,227.0,0.00030137,120]
[400517163,1767692103352,211.03500022,0.00030137,120]
[400517164,1767692120246,402.0,0.0001,10]
[400517165,1767692190065,226.0,0.00030137,120]
[400517166,1767692213899,226.0,0.00030137,120]
[400517167,1767692387519,2067.41,0.00030136,120]
[400517168,1767692387613,2067.41,0.00030136,120]
[400517169,1767692387899,2067.41,0.00030136,120]
[400517170,1767692388133,2067.41,0.00030136,120]
[400517171,1767692388452,2067.41,0.00030136,120]
[400517172,1767692388688,2067.41,0.00030136,120]
[400517173,1767692388944,2067.41,0.00030136,120]
[400517174,1767692389217,2067.41,0.00030136,120]
[400517175,1767692389458,2067.41,0.00030136,120]
[400517176,1767692389689,2067.41,0.00030136,120]
[400517177,1767692389938,2067.41,0.00030136,120]
[400517178,1767692390178,2067.41,0.00030136,120]
[400517179,1767692390417,2067.41,0.00030136,120]
[400517180,1767692390680,2067.41,0.00030136,120]
[400517181,1767692390919,2067.41,0.00030136,120]
[400517182,1767692391165,2067.41,0.00030136,120]
[400517183,1767692391407,2067.41,0.00030136,120]
[400517184,1767692392057,2067.41,0.00030136,120]
[400517185,1767692392300,2067.41,0.00030136,120]
[400517186,1767692392578,2067.41,0.00030136,120]
[400517187,1767692392895,2067.41,0.00030136,120]
[400517188,1767692393150,2067.41,0.00030136,120]
[400517189,1767692393418,2067.41,0.00030136,120]
[400517190,1767692393658,2067.58678868,0.00030136,120]
[400517191,1767692571959,153.97880833,0.00025344,120]
[400517223,1767693031580,-4472.0751145,0.00013457,2]
[400517226,1767693031601,-158248.36323847,0.00013457,2]
[400517229,1767693031633,-545.53463938,0.00013457,2]
[400517262,1767693037659,-836734.02700765,0.00013457,2]
[400517264,1767693037670,-245.97387066,0.00013481,2]
[400517266,1767693037680,-500.0,0.00013553,2]
[400517268,1767693037689,-454.15745693,0.00013553,2]
[400517270,1767693037698,-535.10917489,0.00013553,2]
[400517272,1767693037708,-535.10917489,0.00013553,2]
[400517274,1767693037717,-170.26675205,0.00013553,2]
[400517276,1767693037727,-535.10917489,0.00013553,2]
[400517278,1767693037736,-535.10917489,0.00013553,2]
[400517280,1767693037745,-535.10917489,0.00013553,2]
[400517282,1767693037754,-535.10917489,0.00013553,2]
[400517284,1767693037764,-535.10917489,0.00013553,2]
[400517286,1767693037774,-535.10917489,0.00013553,2]
[400517288,1767693037783,-535.10917489,0.00013553,2]
[400517290,1767693037792,-535.10917489,0.00013553,2]
[400517292,1767693037801,-535.10917489,0.00013553,2]
[400517294,1767693037812,-535.10917489,0.00013553,2]
[400517296,1767693037821,-500.0,0.00013553,2]
[400517298,1767693037832,-500.0,0.00013553,2]
[400517300,1767693037846,-500.0,0.00013553,2]
[400517302,1767693037855,-500.0,0.00013553,2]
[400517304,1767693037866,-500.0,0.00013553,2]
[400517306,1767693037875,-500.0,0.00013553,2]
[400517308,1767693037884,-500.0,0.00013553,2]
[400517310,1767693037894,-500.0,0.00013553,2]
[400517312,1767693037903,-535.10917489,0.00013553,2]
[400517315,1767693037915,-500.0,0.00013553,2]
[400517317,1767693037925,-500.0,0.00013553,2]
[400517318,1767693037934,-500.0,0.00013553,2]
[400517321,1767693037943,-500.0,0.00013553,2]
[400517323,1767693037952,-500.0,0.00013553,2]
[400517324,1767693037962,-500.0,0.00013553,2]
[400517326,1767693037971,-500.0,0.00013553,2]
[400517328,1767693037980,-500.0,0.00013553,2]
[400517330,1767693037989,-200.0,0.00013553,2]
[400517332,1767693037998,-500.0,0.00013553,2]
[400517334,1767693038007,-500.0,0.00013553,2]
[400517336,1767693038017,-500.0,0.00013553,2]
[400517338,1767693038026,-535.10917489,0.00013553,2]
[400517341,1767693038035,-500.0,0.00013553,2]
[400517343,1767693038046,-500.0,0.00013553,2]
[400517345,1767693038056,-500.0,0.00013553,2]
[400517347,1767693038065,-500.0,0.00013553,2]
[400517349,1767693038074,-535.10917489,0.00013553,2]
[400517351,1767693038084,-500.0,0.00013553,2]
[400517353,1767693038093,-435.93121819,0.00013553,2]
[400517355,1767693038103,-500.0,0.00013553,2]
[400517357,1767693038113,-535.10917489,0.00013553,2]
[400517359,1767693038122,-500.0,0.00013553,2]
[400517361,1767693038132,-500.0,0.00013553,2]
[400517363,1767693038142,-500.0,0.00013553,2]
[400517365,1767693038151,-500.0,0.00013553,2]
[400517367,1767693038160,-500.0,0.00013553,2]
[400517369,1767693038169,-535.10917489,0.00013553,2]
[400517371,1767693038179,-500.0,0.00013553,2]
[400517373,1767693038188,-500.0,0.00013553,2]
[400517375,1767693038198,-500.0,0.00013553,2]
[400517377,1767693038207,-500.0,0.00013553,2]
[400517379,1767693038218,-500.0,0.00013553,2]
[400517381,1767693038227,-500.0,0.00013553,2]
[400517383,1767693038237,-500.0,0.00013553,2]
[400517385,1767693038247,-500.0,0.00013553,2]
[400517387,1767693038256,-500.0,0.00013553,2]
[400517389,1767693038266,-535.10917489,0.00013553,2]
[400517391,1767693038275,-470.96197469,0.00013553,2]
[400517393,1767693038285,-500.0,0.00013553,2]
[400517395,1767693038294,-500.0,0.00013553,2]
[400517397,1767693038304,-500.0,0.00013553,2]
[400517398,1767693038313,-500.0,0.00013553,2]
[400517400,1767693038322,-500.0,0.00013553,2]
[400517402,1767693038332,-535.10917489,0.00013553,2]
[400517404,1767693038341,-500.0,0.00013553,2]
[400517406,1767693038351,-500.0,0.00013553,2]
[400517408,1767693038361,-500.0,0.00013553,2]
[400517410,1767693038370,-500.0,0.00013553,2]
[400517413,1767693038385,-500.0,0.00013553,2]
[400517415,1767693038398,-282.89726674,0.00013553,2]
[400517417,1767693038408,-500.0,0.00013553,2]
[400517419,1767693038417,-500.0,0.00013553,2]
[400517421,1767693038427,-535.10917489,0.00013553,2]
[400517423,1767693038436,-535.10917489,0.00013553,2]
[400517425,1767693038446,-535.10917489,0.00013553,2]
[400517427,1767693038455,-535.10917489,0.00013553,2]
[400517429,1767693038465,-535.10917489,0.00013553,2]
[400517431,1767693038474,-300.0,0.00013553,2]
[400517433,1767693038484,-300.0,0.00013553,2]
[400517435,1767693038493,-300.0,0.00013553,2]
[400517437,1767693038502,-1200.0,0.00013553,2]
[400517439,1767693038512,-300.0,0.00013554,2]
[400517441,1767693038522,-50000.0,0.00013555,2]
[400517443,1767693038532,-500.0,0.00013561,2]
[400517445,1767693038542,-151.0,0.000136,2]
[400517448,1767693038552,-500.0,0.00013698,2]
[400517450,1767693038562,-500.0,0.00013698,2]
[400517452,1767693038571,-500.0,0.00013698,2]
[400517454,1767693038581,-500.0,0.00013698,2]
[400517456,1767693038591,-500.0,0.00013698,2]
[400517458,1767693038600,-500.0,0.00013698,2]
[400517460,1767693038611,-500.0,0.00013698,2]
[400517462,1767693038620,-500.0,0.00013698,2]
[400517464,1767693038630,-500.0,0.00013698,2]
[400517466,1767693038641,-500.0,0.00013698,2]
[400517468,1767693038651,-500.0,0.00013698,2]
[400517470,1767693038660,-500.0,0.00013698,2]
[400517472,1767693038670,-500.0,0.00013698,2]
[400517474,1767693038679,-500.11958975,0.00013698,2]
[400517476,1767693038689,-885.4942762,0.00013699,2]
[400517478,1767693038699,-1000.0,0.00013699,2]
[400517480,1767693038708,-500.0,0.00013699,2]
[400517482,1767693038718,-151.0,0.00013699,2]
[400517484,1767693038728,-151.0,0.00013699,2]
[400517486,1767693038738,-151.0,0.00013699,2]
[400517488,1767693038747,-156.236454,0.00013699,2]
[400517503,1767693038934,-500.0,0.00013699,2]
[400517504,1767693038944,-500.0,0.00013699,2]
[400517505,1767693038953,-500.0,0.00013699,2]
[400517506,1767693038963,-500.0,0.00013699,2]
[400517507,1767693038972,-500.0,0.00013699,2]
[400517508,1767693038982,-500.0,0.00013699,2]
[400517509,1767693038992,-500.0,0.00013699,2]
[400517510,1767693039002,-500.0,0.00013699,2]
[400517511,1767693039011,-500.0,0.00013699,2]
[400517512,1767693039020,-285.00000009,0.00013699,2]
[400517513,1767693039030,-500.0,0.00013699,2]
[400517514,1767693039040,-500.0,0.00013699,2]
[400517515,1767693039049,-500.0,0.00013699,2]
[400517516,1767693039059,-500.0,0.00013699,2]
[400517517,1767693039068,-500.0,0.00013699,2]
[400517518,1767693039078,-500.0,0.00013699,2]
[400517519,1767693039088,-1514.0,0.0001386,2]
[400517520,1767693039097,-300.0,0.00013934,2]
[400517521,1767693039106,-300.0,0.00013934,2]
[400517522,1767693039116,-300.0,0.00013934,2]
[400517523,1767693039125,-300.0,0.00013934,2]
[400517524,1767693039134,-300.0,0.00013934,2]
[400517525,1767693039143,-300.0,0.00013934,2]
[400517526,1767693039153,-300.0,0.00013934,2]
[400517527,1767693039163,-300.0,0.00013934,2]
[400517528,1767693039172,-300.0,0.00013934,2]
[400517529,1767693039182,-300.0,0.00013934,2]
[400517530,1767693039191,-300.0,0.00013934,2]
[400517531,1767693039201,-300.0,0.00013934,2]
[400517532,1767693039211,-300.0,0.00013934,2]
[400517533,1767693039219,-300.0,0.00013934,2]
[400517534,1767693039228,-300.0,0.00013934,2]
[400517535,1767693039237,-600.0,0.00013934,2]
[400517537,1767693039246,-1053.20673616,0.00014175,2]
[400517539,1767693039256,-1000.0,0.00014247,2]
[400517541,1767693039265,-849.14644215,0.00014304,2]
[400517542,1767693039276,-2294.38542361,0.00014767,2]
[400517543,1767693039285,-3437.4229374,0.00014784,2]
[400517544,1767693039295,-70217.8618655,0.00014784,2]
[400517545,1767693039304,-170.7360697,0.00014784,2]
[400517546,1767693039314,-1500.0,0.00014795,2]
[400517547,1767693039324,-1956.41347233,0.00014836,2]
[400517548,1767693039334,-1041.66666667,0.00014842,2]
[400517549,1767693039344,-420.0,0.00014855,2]
[400517551,1767693039353,-100000.0,0.00014882,2]
[400517553,1767693039363,-153806.80053778,0.0001501,2]
[400517554,1767693039372,-151.0,0.0001501,2]
[400517555,1767693039381,-151.0,0.0001501,2]
[400517556,1767693039390,-151.0,0.0001501,2]
[400517557,1767693039401,-720.0,0.00015328,2]
[400517558,1767693039410,-2000.0,0.00015342,2]
[400517560,1767693039419,-290.24916738,0.00015481,2]
[400517562,1767693039428,-2500.0,0.0001589,2]
[400517563,1767693039437,-1513.0,0.00015939,2]
[400517565,1767693039446,-2859.62020849,0.00016165,4]
[400517567,1767693039455,-587.0,0.00016281,2]
[400517569,1767693039464,-154.84,0.00016786,2]
[400517570,1767693039473,-864.0,0.0001686,2]
[400517572,1767693039482,-15667.7227633,0.00016912,2]
[400517573,1767693039491,-30000.0,0.00017069,2]
[400517574,1767693039501,-500.0,0.00017069,2]
[400517576,1767693039510,-500.0,0.00017069,2]
[400517577,1767693039519,-500.0,0.00017069,2]
[400517578,1767693039529,-500.0,0.00017069,2]
[400517579,1767693039538,-500.0,0.00017069,2]
[400517580,1767693039547,-500.0,0.00017069,2]
[400517581,1767693039556,-500.0,0.00017069,2]
[400517583,1767693039565,-500.0,0.00017069,2]
[400517585,1767693039575,-500.0,0.00017069,2]
[400517586,1767693039584,-500.0,0.00017069,2]
[400517587,1767693039592,-500.0,0.00017069,2]
[400517588,1767693039602,-250.0,0.00017069,2]
[400517589,1767693039611,-250.0,0.00017069,2]
[400517591,1767693039620,-500.0,0.00017069,2]
[400517593,1767693039629,-250.0,0.00017069,2]
[400517595,1767693039638,-496.47127164,0.00017069,2]
[400517596,1767693039649,-500.0,0.00017069,2]
[400517598,1767693039658,-250.0,0.00017069,2]
[400517600,1767693039667,-500.0,0.00017069,2]
[400517601,1767693039676,-250.0,0.00017069,2]
[400517602,1767693039685,-491.77526848,0.00017069,2]
[400517603,1767693039694,-250.0,0.00017069,2]
[400517604,1767693039702,-250.0,0.00017069,2]
[400517605,1767693039712,-255.24985543,0.00017069,2]
[400517606,1767693039721,-2398.4119403,0.00017069,2]
[400517607,1767693039730,-264.57870743,0.00017069,2]
[400517608,1767693039739,-3495.9414893,0.00017387,2]
[400517610,1767693039748,-334.5244641,0.00017481,2]
[400517611,1767693039757,-31110.0,0.00017617,2]
[400517613,1767693039767,-514.84070869,0.00017617,2]
[400517615,1767693039775,-2487.15318209,0.00017617,2]
[400517616,1767693039784,-151.0,0.00017733,2]
[400517617,1767693039793,-519.0,0.00017845,2]
[400517618,1767693039802,-200.0,0.00017997,2]
[400517619,1767693039812,-155175.09586345,0.00017998,2]
[400517620,1767693039821,-200.0,0.00017999,2]
[400517621,1767693039834,-48704.30174775,0.00018,2]
[400517622,1767693039845,-171.1392107,0.00018043,2]
[400517623,1767693039855,-151.0,0.00018057,2]
[400517624,1767693039864,-13758.54084438,0.00018082,3]
[400517625,1767693039874,-355.83468855,0.00018165,2]
[400517626,1767693039883,-533.88981491,0.00018165,2]
[400517627,1767693039893,-2579.17784983,0.00018165,2]
[400517628,1767693039903,-160.0,0.00018269,3]
[400517629,1767693039912,-800.0,0.00018356,7]
[400517630,1767693039922,-151.0,0.00018381,2]
[400517631,1767693039932,-1365.0,0.00018381,2]
[400517632,1767693039941,-628.0,0.00018381,2]
[400517633,1767693039951,-2145.0,0.00018381,2]
[400517634,1767693039960,-417.0,0.00018381,2]
[400517635,1767693039969,-150.275,0.00018381,2]
[400517636,1767693039979,-301.015,0.00018381,2]
[400517637,1767693039989,-150.994,0.00018381,2]
[400517638,1767693039999,-376.8200359,0.00018384,2]
[400517639,1767693040008,-376.8200359,0.00018384,2]
[400517640,1767693040017,-376.8200359,0.00018384,2]
[400517641,1767693040027,-376.8200359,0.00018384,2]
[400517642,1767693040036,-376.8200359,0.00018384,2]
[400517643,1767693040046,-376.8200359,0.00018384,2]
[400517644,1767693040055,-376.8200359,0.00018384,2]
[400517645,1767693040063,-376.8200359,0.00018384,2]
[400517646,1767693040073,-3393.18918282,0.00018492,2]
[400517647,1767693040083,-1000.0,0.00018546,2]
[400517648,1767693040092,-13758.54,0.00018621,3]
[400517649,1767693040101,-151.0,0.00018705,2]
[400517650,1767693040110,-553.64373807,0.00018713,2]
[400517651,1767693040119,-2674.60743027,0.00018713,2]
[400517652,1767693040128,-166.124,0.00018818,2]
[400517653,1767693040138,-4666.03368082,0.00018824,9]
[400517654,1767693040148,-1000.0,0.00018831,5]
[400517655,1767693040157,-151.0,0.00018869,2]
[400517656,1767693040166,-151.0,0.00018869,2]
[400517657,1767693040175,-151.0,0.00018869,2]
[400517658,1767693040186,-461.69267426,0.00018909,2]
[400517659,1767693040195,-1846.77069704,0.00018909,2]